bitfinex/quotes_ETHUSD_20260312
["timestamp","ask_amount","ask_price","bid_price","bid_amount"]
[1773337288200,1.22058196,2068.7,2068.3,1.69594745]
[1773337288400,1.22058335,2068.7,2068.3,1.69594745]
[1773337288718,1.68441995,2068.7,2068.2,1.20874338]
[1773337289026,1.68441995,2068.7,2068.2,1.6960126]
[1773337289222,0.47592427,2068.7,2068.2,1.6960126]
[1773337289428,1.22057938,2068.7,2068.3,0.48726922]
[1773337289828,1.22057938,2068.7,2068.4,0.48726922]
[1773337290627,0.01208767,2068.7,2068.4,0.48726922]
[1773337291226,1.22057848,2068.7,2068.4,0.48726922]
[1773337292304,1.22057848,2068.7,2068.2,1.696005]
[1773337292533,0.01208767,2068.7,2068.3,0.48726922]
[1773337293520,1.22057739,2068.7,2068.3,0.48726922]
[1773337293707,1.22058969,2068.7,2068.3,0.48726922]
[1773337294129,0.01208767,2068.7,2068.3,1.69594623]
[1773337294736,1.22058618,2068.7,2068.3,0.48726922]
[1773337294924,1.22058618,2068.7,2068.3,1.69598437]
[1773337295239,1.68442278,2068.7,2068.2,0.48726922]
[1773337295704,0.4638366,2068.5,2068.0,0.001]
[1773337295905,0.4638366,2068.3,2067.8,1.21000312]
[1773337296102,1.20878058,2068.2,2067.8,0.001]
[1773337296402,0.4638366,2068.1,2067.8,0.001]
[1773337296611,0.4638366,2068.0,2067.4,3.48344986]
[1773337296925,0.4638366,2067.6,2067.2,0.01209372]
[1773337297738,2.72247145,2067.9,2067.2,0.01209372]
[1773337297739,0.4638366,2067.8,2067.2,0.01209372]
[1773337297926,0.4256205,2067.7,2067.2,1.70872488]
[1773337298132,0.4638366,2068.0,2067.2,1.70872488]
[1773337298333,1.20901441,2067.8,2067.5,0.001]
[1773337298944,1.67285101,2067.8,2067.5,0.001]
[1773337299235,0.4638366,2067.6,2067.5,0.001]
[1773337299440,1.67285101,2067.8,2067.5,0.001]
[1773337301530,0.4638366,2067.7,2067.2,0.01209372]
[1773337302248,1.20901441,2067.8,2067.2,1.71421095]
[1773337302464,0.002,2068.3,2067.3,0.4927537]
[1773337302634,2.11007798,2068.2,2067.3,0.4927537]
[1773337302835,0.42472714,2068.1,2067.3,0.4927537]
[1773337303379,0.9012974,2068.1,2067.3,0.4927537]
[1773337303648,0.47657026,2068.1,2067.3,0.4927537]
[1773337304137,0.47657026,2068.1,2067.4,1.20924833]
[1773337304138,1.20889748,2068.0,2067.4,1.20924833]
[1773337304335,5.31206148,2068.1,2067.4,1.20924833]
[1773337304336,0.47657026,2068.1,2067.4,1.70200203]
[1773337304525,0.47657026,2068.1,2067.5,0.4927537]
[1773337304848,1.69747296,2068.2,2067.5,0.4927537]
[1773337306229,1.69745046,2068.2,2067.6,1.20913136]
[1773337306833,0.0120907,2068.2,2067.7,0.4927537]
[1773337308351,0.0120907,2068.2,2067.8,1.70176811]
[1773337308919,0.0120907,2068.2,2067.6,1.70184022]
[1773337308920,1.69747486,2068.2,2067.6,1.70184022]
[1773337309521,1.2209046,2068.2,2067.5,1.20916826]
[1773337309844,0.47657026,2068.1,2067.4,3.51296895]
[1773337310416,1.69113332,2068.0,2067.4,3.51296895]
[1773337311151,1.69113332,2068.0,2067.9,0.001]
[1773337311336,1.69113332,2068.0,2067.6,0.001]
[1773337312825,0.48223584,2067.9,2067.6,0.001]
[1773337313556,1.20889748,2068.0,2067.6,0.001]
[1773337313725,1.69113332,2068.0,2067.6,0.001]
[1773337313926,0.48223584,2067.9,2067.6,0.001]
[1773337314329,1.70315424,2068.2,2067.6,0.4920676]
[1773337314730,1.703112,2068.2,2067.7,1.20907288]
[1773337315570,0.48223584,2068.1,2067.6,1.21008426]
[1773337315887,0.48223584,2068.1,2067.6,0.001]
[1773337316158,0.48223584,2067.8,2067.4,0.001]
[1773337316531,0.48223584,2067.8,2067.2,0.01209372]
[1773337316532,0.48223584,2067.5,2067.2,0.01209372]
[1773337316731,1.69148417,2067.4,2067.2,0.01209372]
[1773337316938,1.69148417,2067.4,2066.9,0.001]
[1773337317359,0.48223584,2067.3,2066.9,0.001]
[1773337317934,0.48223584,2067.2,2066.7,0.01319674]
[1773337318194,0.48223584,2067.2,2066.5,0.0011]
[1773337318334,1.20924833,2067.4,2066.5,0.0011]
[1773337318335,1.20924833,2067.4,2066.7,0.4910676]
[1773337318662,0.90660578,2067.3,2066.7,0.4910676]
[1773337318852,1.20936532,2067.2,2066.7,0.4910676]
[1773337319056,1.69160116,2067.2,2066.6,1.20971644]
[1773337320678,0.48223584,2067.1,2066.5,0.0011]
[1773337320891,0.48223584,2066.9,2066.5,0.0011]
[1773337321691,0.48223584,2066.9,2066.2,0.01319977]
[1773337321980,0.48223584,2066.9,2066.2,1.71419369]
[1773337322179,1.20948234,2067.0,2066.3,0.4910676]
[1773337322339,1.22146454,2067.2,2066.3,0.4910676]
[1773337322679,1.22146454,2067.2,2066.5,0.4910676]
[1773337322680,0.01209674,2067.2,2066.5,0.4910676]
[1773337322839,0.01209674,2067.2,2066.6,1.70078404]
[1773337323835,0.01209674,2067.2,2066.7,0.4910676]
[1773337324335,0.01209372,2067.7,2067.0,0.4910676]
[1773337324540,1.22117137,2067.7,2067.0,0.4910676]
[1773337324761,0.48223584,2067.6,2066.7,2.2920676]
[1773337325062,1.20918984,2067.5,2066.8,1.20959938]
[1773337325261,1.69141538,2067.6,2066.8,1.70066698]
[1773337325454,0.48223584,2067.5,2066.8,1.70066698]
[1773337326040,1.22119892,2067.7,2066.9,0.4910676]
[1773337326470,1.70343476,2067.7,2066.9,0.4910676]
[1773337327059,1.70343476,2067.7,2067.0,1.20948234]
[1773337327256,1.70343476,2067.7,2066.9,1.20950074]
[1773337327257,0.48223584,2067.6,2066.9,1.20950074]
[1773337327766,1.22119892,2067.7,2067.0,0.4910676]
[1773337328941,1.70343476,2067.7,2067.0,0.4910676]
[1773337329569,1.70343476,2067.7,2067.0,1.70050536]
[1773337331588,1.70343476,2067.7,2066.8,1.2095448]
[1773337331589,0.48223584,2067.5,2066.8,1.2095448]
[1773337332260,0.48223584,2067.5,2066.8,1.7006124]
[1773337332470,0.48223584,2067.5,2066.8,0.4910676]
[1773337333470,3.82310689,2067.7,2066.7,0.01209674]
[1773337333471,0.48223584,2067.1,2066.7,0.01209674]
[1773337334773,0.48223584,2067.1,2066.5,0.001]
[1773337334774,0.48223584,2067.0,2066.5,0.001]
[1773337335970,1.69177669,2066.9,2066.5,0.001]
[1773337337073,6.41580776,2067.1,2066.5,0.001]
[1773337337655,1.578,2067.1,2066.5,0.001]
[1773337338062,1.20948234,2067.0,2066.5,0.001]
[1773337338461,1.21048234,2067.0,2066.5,0.001]
[1773337339379,1.21048234,2067.0,2066.5,0.4920676]
[1773337340359,1.21048234,2067.0,2066.5,1.21071917]
[1773337340675,0.001,2067.0,2066.6,0.4675701]
[1773337342055,0.01209674,2067.2,2066.7,0.4675701]
[1773337343054,0.01209674,2067.2,2066.8,1.20959938]
[1773337343255,0.01209674,2067.2,2066.8,1.67716948]
[1773337343566,1.22146651,2067.2,2066.7,1.20961232]
[1773337344070,1.71990357,2067.2,2066.7,1.20961232]
[1773337345180,0.01209674,2067.2,2066.7,0.4675701]
[1773337345382,1.70761224,2067.6,2066.7,0.4675701]
[1773337345564,0.42635746,2067.5,2066.7,0.4675701]
[1773337345759,1.22117987,2067.7,2066.7,0.4675701]
[1773337348582,1.71961693,2067.7,2066.9,0.4675701]
[1773337349691,0.49843706,2067.6,2066.9,0.4675701]
[1773337350894,0.49843706,2067.4,2066.8,1.20955188]
[1773337351900,0.49843706,2067.4,2066.8,1.47132433]
[1773337353189,0.49843706,2067.2,2066.7,1.22275192]
[1773337353596,0.49843706,2067.2,2066.7,0.01309674]
[1773337355069,1.70786089,2067.1,2066.7,0.01309674]
[1773337355401,1.20942383,2067.1,2066.7,1.22274598]
[1773337356609,1.70777418,2067.3,2066.7,1.69031608]
[1773337356816,1.20933712,2067.3,2066.8,0.4675701]
[1773337357186,0.49843706,2067.1,2066.5,1.21072817]
[1773337357388,1.70777418,2067.3,2066.6,0.4675701]
[1773337357610,0.49843706,2067.3,2066.6,0.4675701]
[1773337357813,1.70966054,2067.5,2066.7,0.4675701]
[1773337358317,0.49843706,2067.4,2066.7,0.4675701]
[1773337358699,0.49843706,2067.4,2066.8,0.51586991]
[1773337358893,1.21122348,2067.5,2066.8,0.51586991]
[1773337359296,0.002,2067.5,2067.0,0.4675701]
[1773337359495,0.002,2067.5,2067.0,0.51586523]
[1773337360220,0.01409372,2067.7,2067.1,0.4675701]
[1773337360805,1.22316721,2067.7,2067.1,0.4675701]
[1773337361119,0.01409372,2067.7,2067.1,0.4675701]
[1773337361618,0.01409372,2067.7,2067.2,1.20936532]
[1773337362014,1.72160653,2067.7,2067.2,1.20936532]
[1773337362215,0.45669775,2067.6,2067.0,0.47772484]
[1773337362416,0.45669775,2067.6,2066.9,1.20953304]
[1773337362715,0.45669775,2067.6,2066.8,1.68730771]
[1773337363520,0.01209674,2067.2,2066.8,1.68730771]
[1773337363892,0.01209674,2067.2,2066.9,0.47772484]
[1773337364093,1.20914438,2067.6,2067.1,0.47772484]
[1773337364298,0.002,2067.3,2067.1,0.47772484]
[1773337365830,0.002,2067.5,2067.2,0.47772484]
[1773337366125,0.01409372,2067.7,2067.2,0.47772484]
[1773337367205,1.22316881,2067.7,2067.2,0.47772484]
[1773337367413,1.67986656,2067.7,2067.1,1.20938203]
[1773337367602,0.45669775,2067.6,2067.1,1.20938203]
[1773337367804,0.01409372,2067.7,2067.1,0.47772484]
[1773337368932,1.6798723,2067.7,2067.1,0.47772484]
[1773337369431,0.45669775,2067.6,2067.1,0.47772484]
[1773337369932,0.45669775,2067.6,2067.2,1.20936532]
[1773337372104,0.45669775,2067.6,2067.0,0.45219917]
[1773337372519,0.01409372,2067.7,2067.0,0.45219917]
[1773337372720,1.22317031,2067.7,2067.0,0.45219917]
[1773337372927,0.45838316,2067.6,2067.0,0.45219917]
[1773337374125,1.22317031,2067.7,2067.1,1.20942383]
[1773337374126,1.667573,2067.5,2067.1,1.20942383]
[1773337374435,0.45838316,2067.5,2067.1,1.20942383]
[1773337374632,0.45838316,2067.5,2067.0,1.6616494]
[1773337374930,0.45838316,2067.5,2067.0,0.001]
[1773337376328,1.20924833,2067.4,2067.0,0.001]
[1773337376504,0.45838316,2067.3,2067.0,0.001]
[1773337377728,0.45838316,2067.3,2066.8,0.001]
[1773337377924,0.45838316,2067.3,2067.2,0.001]
[1773337378339,1.66768998,2067.3,2067.2,0.001]
[1773337378547,0.45838316,2067.2,2066.8,0.001]
[1773337380525,1.66776767,2067.2,2066.8,0.001]
[1773337382469,4.83877172,2067.5,2066.8,0.001]
[1773337382470,0.45838316,2067.1,2066.8,0.001]
[1773337382929,0.45838316,2067.1,2066.5,0.001]
[1773337384357,2.60191734,2067.3,2066.3,1.2108566]
[1773337384358,0.45838316,2066.6,2066.3,0.001]
[1773337384559,0.45838316,2066.4,2066.3,0.001]
[1773337384739,0.45838316,2066.3,2066.1,0.0011]
[1773337384942,0.45838316,2066.3,2066.0,0.001]
[1773337385647,0.45838316,2066.3,2065.6,1.22238076]
[1773337385648,0.45838316,2066.0,2065.6,0.01210279]
[1773337385836,0.45838316,2065.7,2065.5,1e-08]
[1773337386589,1.21030209,2065.6,2065.5,1e-08]
[1773337387659,0.45838316,2065.6,2065.5,1e-08]
[1773337387859,0.45838316,2065.9,2065.5,1e-08]
[1773337388360,1.66838362,2066.2,2065.5,1e-08]
[1773337388580,0.45838316,2066.2,2065.5,1e-08]
[1773337388784,1.66821668,2066.4,2065.5,0.45119918]
[1773337389083,0.45838316,2066.4,2065.5,0.45119918]
[1773337389796,0.45838316,2066.4,2065.7,0.001]
[1773337390164,0.45838316,2066.1,2065.7,0.001]
[1773337391293,1.66839261,2066.1,2065.7,0.001]
[1773337391481,0.45838316,2066.1,2065.7,0.001]
[1773337391792,1.66839325,2066.1,2065.7,0.001]
[1773337392282,1.66839399,2066.1,2065.7,0.001]
[1773337392987,0.45838316,2066.1,2065.7,0.001]
[1773337393605,0.01210279,2066.2,2065.7,0.001]
[1773337393764,1.22206323,2066.2,2065.7,0.001]
[1773337393967,0.01210279,2066.2,2065.7,0.001]
[1773337394791,1.68044028,2066.2,2065.7,0.001]
[1773337395165,0.45838316,2066.1,2065.7,0.001]
[1773337395567,0.45838316,2066.0,2065.5,1e-08]
[1773337396469,0.45838316,2065.9,2065.5,1e-08]
[1773337397314,1.66851329,2065.9,2065.5,1e-08]
[1773337397598,0.01210279,2066.2,2065.5,1e-08]
[1773337397599,1.68047772,2066.2,2065.5,1e-08]
[1773337398475,0.45838316,2066.1,2065.5,1e-08]
[1773337399484,1.21006776,2066.0,2065.5,1e-08]
[1773337399710,1.66845092,2066.0,2065.5,1e-08]
[1773337400476,0.49732074,2065.9,2065.5,1e-08]
[1773337401210,0.49732074,2065.9,2065.7,0.0011]
[1773337401718,0.49732074,2065.7,2065.5,1e-08]
[1773337402219,2.60191734,2065.6,2065.5,1e-08]
[1773337402382,2.60191734,2065.6,2065.1,0.01320582]
[1773337402383,0.49732074,2065.5,2065.1,0.01320582]
[1773337403410,0.49732074,2065.5,2065.1,0.01650582]
[1773337403597,1.21039919,2065.5,2065.1,1.22709432]
[1773337403807,1.7076531,2065.6,2065.1,1.22709432]
[1773337405623,0.49732074,2065.5,2065.1,1.22709432]
[1773337406324,1.2102435,2065.7,2065.1,1.22709432]
[1773337406513,1.70756424,2065.7,2065.1,1.22709432]
[1773337406708,1.21019382,2065.8,2065.1,1.70679129]
[1773337406914,1.70751456,2065.8,2065.1,1.70679129]
[1773337407318,0.49732074,2065.7,2065.1,1.70679129]
[1773337407899,1.70762247,2065.7,2065.1,1.70679129]
[1773337408099,1.70762247,2065.7,2065.1,1.22709432]
[1773337408512,0.49732074,2065.6,2065.1,1.22709432]
[1773337409925,1.21017319,2065.9,2065.3,1.21047789]
[1773337410131,1.21017319,2065.9,2065.3,1.69017486]
[1773337410716,1.70749393,2065.9,2065.3,1.69017486]
[1773337411233,4.85190629,2066.2,2065.3,1.69017486]
[1773337411234,0.49732074,2066.1,2065.4,0.48299697]
[1773337412129,1.21006776,2066.0,2065.5,1.21036068]
[1773337412638,0.01210279,2066.2,2065.6,0.48299697]
[1773337413722,1.71938035,2066.2,2065.6,0.0033]
[1773337414235,0.01210279,2066.2,2065.6,0.48299697]
[1773337414804,0.01210279,2066.2,2065.8,0.47969697]
[1773337415305,0.01210279,2066.2,2065.6,0.0033]
[1773337415506,0.50942353,2066.2,2065.6,0.0033]
[1773337416003,1.71937904,2066.2,2065.6,0.0033]
[1773337416235,1.2220583,2066.2,2065.6,0.0033]
[1773337416434,1.71937904,2066.2,2065.6,0.0033]
[1773337416756,0.49732074,2066.1,2065.6,0.0033]
[1773337416951,0.49732074,2066.1,2065.6,0.0022]
[1773337417952,1.2220583,2066.2,2065.7,0.0011]
[1773337418141,0.49732074,2066.1,2065.6,0.0022]
[1773337418349,1.70734945,2066.1,2065.5,1.69005765]
[1773337418642,0.49732074,2066.0,2065.6,0.0033]
[1773337419737,0.49732074,2066.0,2065.4,1.21039897]
[1773337420072,0.49732074,2066.0,2065.5,0.0033]
[1773337420641,1.21012633,2065.9,2065.5,0.0033]
[1773337421772,1.70744707,2065.9,2065.5,0.0033]
[1773337422071,0.49732074,2065.8,2065.5,0.0033]
[1773337422266,0.49732074,2065.8,2065.3,0.0011]
[1773337422476,0.49732074,2065.8,2065.4,0.0033]
[1773337422877,0.4678527,2065.6,2065.4,0.0033]
[1773337425089,0.4678527,2066.0,2065.6,0.0011]
[1773337425378,0.001,2065.8,2065.6,0.0011]
[1773337425982,0.001,2065.8,2065.7,0.0033]
[1773337429685,0.001,2065.8,2065.7,0.0011]
[1773337432110,0.001,2065.8,2065.7,0.0022]
[1773337432803,0.4795557,2066.2,2065.7,0.0033]
[1773337433009,1.68952287,2066.2,2065.8,0.0033]
[1773337433207,1.68952287,2066.2,2065.7,0.49584421]
[1773337433581,0.46745291,2066.1,2065.7,0.0033]
[1773337434376,0.46745291,2065.9,2065.7,0.0033]
[1773337438182,1.67758799,2065.9,2065.7,0.0033]
[1773337438384,0.46745291,2065.9,2065.7,0.0033]
[1773337440799,1.21007396,2066.0,2065.7,0.0033]
[1773337441310,0.46745291,2065.9,2065.7,0.0033]
[1773337443899,1.67758694,2065.9,2065.7,0.0033]
[1773337444305,0.46745291,2065.9,2065.7,0.0033]
[1773337444501,1.22209046,2066.2,2065.7,0.27402811]
[1773337444815,1.68926739,2066.7,2065.9,0.25862532]
[1773337445385,0.46745291,2066.6,2066.0,0.0033]
[1773337445900,0.46745291,2066.6,2066.0,1.21336776]
[1773337445901,1.67722789,2066.5,2066.0,1.21336776]
[1773337446100,0.46745291,2066.4,2066.0,0.0033]
[1773337446809,0.46745291,2066.4,2066.0,0.0022]
[1773337447715,0.46745291,2066.4,2066.1,0.0011]
[1773337450007,0.001,2066.2,2065.9,0.0044]
[1773337450386,0.001,2066.2,2065.9,0.26302532]
[1773337452911,0.001,2066.2,2065.9,1.47312444]
[1773337455531,0.46845291,2066.2,2065.9,0.0044]
[1773337455836,0.001,2066.2,2065.9,1.47314307]
[1773337456036,0.001,2066.2,2066.0,0.25862532]
[1773337456237,1.20981049,2066.5,2066.0,0.25862532]
[1773337456238,1.20981049,2066.5,2066.0,0.25762532]
[1773337456426,1.20981049,2066.5,2066.1,0.26092532]
[1773337456818,1.67719813,2066.6,2066.1,0.26092532]
[1773337457044,0.01209977,2066.7,2066.2,1.20995063]
[1773337457346,0.01209977,2066.7,2066.3,0.25762532]
[1773337457817,0.47955268,2066.7,2066.3,0.25762532]
[1773337458017,1.68922638,2066.7,2066.3,0.25762532]
[1773337458223,0.47955268,2066.7,2066.3,0.25762532]
[1773337458847,0.46745291,2066.6,2066.2,1.20995063]
[1773337459014,0.46745291,2066.6,2066.3,0.0033]
[1773337459345,0.46745291,2066.5,2066.3,0.0033]
[1773337459641,0.46745291,2066.5,2066.3,0.0011]
[1773337459966,0.47955268,2066.7,2066.3,0.0011]
[1773337460124,1.68921819,2066.7,2066.4,0.0022]
[1773337461270,0.002,2066.5,2066.4,0.0022]
[1773337462175,0.01409977,2066.7,2066.4,0.25982532]
[1773337462375,0.40688906,2066.9,2066.7,0.25762532]
[1773337462545,0.48723529,2067.5,2066.6,0.25762532]
[1773337462872,1.69643587,2067.5,2066.8,0.25762532]
[1773337463241,1.20924948,2067.4,2066.9,1.46716617]
[1773337463449,1.70670906,2067.2,2066.9,0.0023]
[1773337464073,0.49733203,2067.2,2066.9,0.0023]
[1773337464256,1.706702,2067.2,2066.9,0.0023]
[1773337464574,0.49733203,2067.2,2066.9,0.0023]
[1773337464775,1.70670192,2067.2,2066.9,0.0023]
[1773337465480,0.49733203,2067.2,2066.9,0.0023]
[1773337465680,0.01209674,2067.2,2066.9,0.25992532]
[1773337465976,1.22146661,2067.2,2066.9,0.0023]
[1773337466469,1.2214652,2067.2,2066.9,0.0023]
[1773337466676,0.01209674,2067.2,2066.9,0.0023]
[1773337466969,0.48523529,2067.1,2066.5,0.07867153]
[1773337467561,1.20945908,2067.1,2066.6,1.20971644]
[1773337467872,0.48523529,2067.0,2066.6,1.20971644]
[1773337468373,0.48523529,2067.0,2066.5,1.20976693]
[1773337468758,1.20945908,2067.1,2066.6,0.07867153]
[1773337469559,0.48523529,2067.0,2066.6,1.28837758]
[1773337469766,0.48523529,2067.0,2066.5,1.20973955]
[1773337472173,0.48523529,2066.9,2066.5,1.20973955]
[1773337472752,0.48523529,2066.9,2066.5,1.28841108]
[1773337472972,1.20948501,2067.0,2066.5,1.28841108]
[1773337473458,0.48723529,2066.9,2066.4,1.21082731]
[1773337473865,0.48523529,2066.8,2066.4,0.001]
[1773337474387,0.002,2066.9,2066.4,0.07967153]
[1773337474579,0.48723529,2066.9,2066.4,0.07967153]
[1773337475779,1.69677676,2066.9,2066.4,0.07967153]
[1773337476276,0.48523529,2066.8,2066.4,1.21080486]
[1773337477392,0.48523529,2066.8,2066.4,1.28947639]
[1773337481878,0.48523529,2066.8,2066.4,1.33786973]
[1773337482603,0.48523529,2066.8,2066.4,0.07967153]
[1773337482773,0.46406406,2066.7,2066.4,0.001]
[1773337483285,0.46606406,2066.9,2066.5,0.07867153]
[1773337483663,1.67560492,2066.9,2066.5,0.07867153]
[1773337484277,0.46406406,2066.8,2066.4,1.21082877]
[1773337484588,0.46406406,2066.8,2066.4,0.07967153]
[1773337485097,1.67367086,2066.8,2066.4,0.07967153]
[1773337485284,0.46406406,2066.8,2066.4,0.07967153]
[1773337485464,0.46406406,2066.8,2066.4,0.001]
[1773337485465,0.46406406,2066.7,2066.4,0.001]
[1773337486394,0.46406406,2066.7,2066.4,0.001]
[1773337487069,0.002,2066.7,2066.4,0.12806261]
[1773337487402,0.002,2066.7,2066.5,0.07967153]
[1773337487691,0.002,2066.9,2066.5,0.07967153]
[1773337488963,0.002,2066.9,2066.6,1.28838797]
[1773337489703,0.002,2066.9,2066.7,0.07867153]
[1773337490764,0.46606406,2067.1,2066.7,0.07667153]
[1773337490765,0.002,2067.1,2066.7,0.07667153]
[1773337491074,0.002,2067.1,2066.9,0.07667153]
[1773337491605,0.47487779,2067.1,2066.5,0.001]
[1773337491901,0.47487779,2067.1,2066.5,1.21076898]
[1773337492295,0.47487779,2067.1,2066.5,0.001]
[1773337492598,0.47487779,2067.1,2066.5,1.21076438]
[1773337493097,1.20948234,2067.0,2066.5,0.001]
[1773337493297,0.47287779,2066.9,2066.5,0.001]
[1773337495185,0.47287779,2066.8,2066.5,0.001]
[1773337495874,0.47287779,2066.8,2066.4,0.001]
[1773337496802,4.83797251,2067.0,2066.4,0.001]
[1773337496803,0.47287779,2067.0,2066.4,0.07867153]
[1773337497103,0.002,2067.1,2066.4,0.07867153]
[1773337497303,0.002,2067.1,2066.5,1.20977498]
[1773337497509,0.002,2067.1,2066.6,0.07767153]
[1773337498806,0.47287779,2067.0,2066.6,0.07767153]
[1773337499184,0.47287779,2067.0,2066.7,0.001]
[1773337500002,0.002,2066.9,2066.7,0.001]
[1773337500415,0.002,2066.9,2066.7,0.07867153]
[1773337501316,0.002,2066.9,2066.7,0.001]
[1773337503418,0.47287779,2066.8,2066.5,0.001]
[1773337504418,0.47287779,2066.7,2066.5,0.001]
[1773337506894,0.47287779,2066.6,2066.5,0.001]
[1773337508429,0.47287779,2066.5,2066.4,0.001]
[1773337509099,0.47287779,2066.5,2066.2,1e-08]
[1773337509928,0.47287779,2066.4,2066.2,1e-08]
[1773337510411,1.68276986,2066.3,2066.2,1e-08]
[1773337513508,0.47287779,2066.2,2065.9,0.0011]
[1773337513721,3.07599157,2066.0,2065.9,0.0011]
[1773337514027,3.07599157,2066.0,2065.6,0.01320279]
[1773337514028,0.47287779,2065.9,2065.6,0.01320279]
[1773337514205,0.47287779,2065.5,2065.1,0.00100002]
[1773337514801,0.47287779,2065.3,2065.1,0.00100002]
[1773337516229,0.47287779,2065.2,2065.1,0.00100002]
[1773337516728,1.68341429,2065.2,2065.1,0.00100002]
[1773337517618,1.68341429,2065.2,2064.8,0.0011]
[1773337517619,0.47287779,2065.1,2064.8,0.0011]
[1773337519426,1.21053781,2065.2,2064.8,0.0011]
[1773337519628,0.47287779,2065.1,2064.8,0.0011]
[1773337520010,0.47287779,2065.1,2064.9,0.01622136]
[1773337520208,0.44866706,2065.1,2064.9,0.01622057]
[1773337520411,0.44866706,2065.1,2064.8,0.0011]
[1773337520615,0.44866706,2065.1,2064.9,0.01622136]
[1773337520815,0.44866706,2065.1,2064.8,0.0011]
[1773337521025,1.65927411,2065.1,2064.9,0.01622136]
[1773337521315,0.4917232,2065.0,2064.9,0.01622057]
[1773337521520,0.4917232,2065.0,2064.8,0.0011]
[1773337523239,0.4917232,2064.9,2064.8,0.0011]
[1773337524998,0.4917232,2064.9,2064.6,0.01320884]
[1773337525206,0.4917232,2064.7,2064.6,1e-08]
[1773337526934,0.4917232,2064.6,2064.1,0.01211187]
[1773337527122,0.4917232,2064.4,2064.1,1e-08]
[1773337528031,0.4917232,2064.2,2064.1,1e-08]
[1773337530611,1.70284615,2064.2,2064.1,1e-08]
[1773337531823,0.4917232,2064.2,2063.6,4.02498056]
[1773337532230,0.4917232,2064.2,2063.7,0.12628701]
[1773337532434,4.85567961,2064.6,2063.7,0.12628701]
[1773337532435,1.714732,2064.6,2063.7,0.12628701]
[1773337533236,0.50383506,2064.6,2063.7,0.12628701]
[1773337533638,0.4917232,2064.5,2063.9,0.21987498]
[1773337533838,0.4917232,2064.5,2063.7,0.21987498]
[1773337534427,1.70272881,2064.4,2063.8,1.43123266]
[1773337535060,0.4917232,2064.4,2063.8,1.43123266]
[1773337535549,0.01211186,2064.6,2063.9,0.21987498]
[1773337535839,1.71473205,2064.6,2063.9,0.22097498]
[1773337536043,0.4917232,2064.5,2063.9,0.22097498]
[1773337536859,0.4917232,2064.5,2064.0,1.21124031]
[1773337537051,0.4917232,2064.5,2064.0,1.43111529]
[1773337537861,0.01211186,2064.6,2064.1,0.24007972]
[1773337538163,0.4917232,2064.9,2064.2,0.24007972]
[1773337538333,1.70245111,2064.9,2064.2,0.24007972]
[1773337538748,0.4917232,2064.8,2064.2,0.24007972]
[1773337538954,0.4917232,2064.8,2064.3,1.21106428]
[1773337539133,0.4917232,2064.8,2064.3,1.451144]
[1773337539335,0.4917232,2064.9,2064.4,0.24007972]
[1773337541060,0.4917232,2064.9,2064.5,1.21094696]
[1773337541938,1.70243969,2064.9,2064.5,1.21094696]
[1773337542140,0.4917232,2064.9,2064.5,1.21094696]
[1773337543158,0.48668707,2064.8,2064.4,1.45103961]
[1773337543665,0.48668707,2064.8,2064.4,1.21095989]
[1773337544273,0.48668707,2064.8,2064.1,7.52418078]
[1773337544274,0.48668707,2064.7,2064.1,1.2232826]
[1773337544479,0.48668707,2064.7,2064.1,0.01211187]
[1773337544647,0.48668707,2064.5,2064.1,0.01211187]
[1773337545143,0.48668707,2064.3,2064.1,0.01211187]
[1773337545350,0.48668707,2064.6,2064.1,1.46336607]
[1773337546177,1.69750324,2064.8,2064.2,0.24007972]
[1773337547157,1.69750324,2064.8,2064.3,1.21106428]
[1773337547883,0.48668707,2064.7,2064.2,1.21107874]
[1773337548168,0.48768707,2064.6,2064.2,1.21107874]
[1773337548666,0.001,2064.6,2064.2,1.45115846]
[1773337549036,0.48768707,2064.6,2064.1,1.2232477]
[1773337549236,0.48668707,2064.4,2064.1,0.01211187]
[1773337550441,0.48668707,2064.4,2063.6,0.0132149]
[1773337550642,0.48668707,2064.4,2063.6,1.224686]
[1773337550643,0.4840232,2064.2,2063.6,1.224686]
[1773337550843,0.4840232,2064.2,2063.6,0.0132149]
[1773337550844,0.4840232,2064.1,2063.6,0.0132149]
[1773337551050,0.4840232,2064.1,2063.4,0.0011]
[1773337551249,0.4840232,2063.8,2063.4,0.0011]
[1773337551468,0.4840232,2063.6,2063.4,0.0011]
[1773337553470,1.695557,2063.5,2063.4,0.0011]
[1773337554693,0.4840232,2063.5,2063.4,0.0011]
[1773337555666,1.695557,2063.5,2063.4,0.0011]
[1773337555861,0.4840232,2063.5,2063.4,0.0011]
[1773337557188,1.695557,2063.5,2063.4,0.0011]
[1773337557377,0.4840232,2063.5,2063.4,0.0011]
[1773337558491,1.695557,2063.5,2063.4,0.0011]
[1773337560103,0.4840232,2063.4,2063.1,0.01321793]
[1773337560767,0.4840232,2063.4,2062.9,1.21186031]
[1773337560768,0.4840232,2062.9,2062.5,0.01212096]
[1773337561186,0.4840232,2062.9,2062.5,1e-08]
[1773337561797,0.4840232,2062.6,2062.5,1e-08]
[1773337562568,0.4840232,2062.6,2062.0,0.01212399]
[1773337562790,0.4840232,2062.3,2062.0,0.01212399]
[1773337562972,0.4840232,2062.1,2062.0,0.01212399]
[1773337563185,0.4840232,2062.0,2061.5,0.01212702]
[1773337563581,0.4840232,2061.7,2060.9,1.21601689]
[1773337563787,0.4840232,2061.7,2060.6,6.57792597]
[1773337563788,2.60311378,2061.3,2060.6,0.006]
[1773337563976,6.93722756,2061.6,2060.6,0.006]
[1773337563977,3.08713698,2060.7,2060.6,0.006]
[1773337564305,2.2160232,2060.7,2060.1,1.35352832]
[1773337564476,0.50024613,2060.6,2060.1,0.1400014]
[1773337564677,1.69732094,2060.5,2060.1,0.1400014]
[1773337565001,0.50024613,2060.4,2060.1,0.1400014]
[1773337565511,0.50024613,2060.4,2059.3,0.39723217]
[1773337565877,0.4840232,2060.1,2059.2,1.21403648]
[1773337566203,6.58609013,2060.6,2059.4,3.00034595]
[1773337566204,0.01622293,2060.0,2059.4,3.00034595]
[1773337566414,0.01622293,2060.0,2059.5,0.39723217]
[1773337567012,0.01622293,2060.0,2059.6,1.21382792]
[1773337567217,0.01622293,2060.0,2059.3,1.21400475]
[1773337567405,0.4840232,2059.9,2058.9,1.6600424]
[1773337567592,0.50024613,2059.8,2058.9,1.61147278]
[1773337567908,0.50024613,2059.8,2059.0,0.39723217]
[1773337567909,0.01622293,2059.8,2059.0,0.39723217]
[1773337568512,0.50024613,2059.8,2058.9,1.21424061]
[1773337568711,0.4840232,2059.6,2058.2,0.39723217]